fUST/lending_fUST_20240904
["ID","MTS","AMOUNT","RATE_DAILY","PERIOD"]
[337154856,1725456759755,-500.0,0.00030136,2]
[337154857,1725456759764,-899.14,0.00030136,2]
[337154858,1725456759773,-613.99,0.00030136,2]
[337154859,1725456759783,-762.62,0.00030136,2]
[337154860,1725456759792,-500.0,0.00030136,2]
[337154861,1725456759802,-500.0,0.00030136,2]
[337154862,1725456759811,-732.83,0.00030136,2]
[337154863,1725456759821,-500.0,0.00030136,2]
[337154864,1725456759830,-500.0,0.00030136,2]
[337154865,1725456759839,-500.0,0.00030136,2]
[337154866,1725456759849,-500.0,0.00030136,2]
[337154867,1725456759859,-500.0,0.00030136,2]
[337154868,1725456759868,-500.0,0.00030136,2]
[337154869,1725456759877,-500.0,0.00030136,2]
[337154870,1725456759886,-500.0,0.00030136,2]
[337154871,1725456759896,-500.0,0.00030136,2]
[337154872,1725456759906,-500.0,0.00030136,2]
[337154873,1725456759916,-2003.71,0.00030136,2]
[337154874,1725456759925,-364.968583,0.00030136,2]
[337154875,1725456759935,-1205.94,0.00030136,2]
[337154876,1725456759944,-500.0,0.00030136,2]
[337154877,1725456759953,-500.0,0.00030136,2]
[337154878,1725456759962,-526.12,0.00030136,2]
[337154879,1725456759972,-163.773025,0.00030136,2]
[337154880,1725456759986,-500.0,0.00030136,2]
[337154881,1725456759996,-500.0,0.00030136,2]
[337154882,1725456760005,-500.0,0.00030136,2]
[337154883,1725456760014,-500.0,0.00030136,2]
[337154884,1725456760024,-500.0,0.00030136,2]
[337154885,1725456760033,-912.72,0.00030136,2]
[337154886,1725456760042,-500.0,0.00030136,2]
[337154887,1725456760051,-500.0,0.00030136,2]
[337154888,1725456760061,-1228.0,0.00030136,2]
[337154889,1725456760070,-500.0,0.00030136,2]
[337154890,1725456760079,-500.0,0.00030136,2]
[337154891,1725456760088,-954.3,0.00030136,2]
[337154892,1725456760098,-1417.83,0.00030136,2]
[337154893,1725456760107,-1493.78,0.00030136,2]
[337154894,1725456760117,-591.49,0.00030136,2]
[337154895,1725456760127,-711.92,0.00030136,2]
[337154896,1725456760136,-1275.87,0.00030136,2]
[337154897,1725456760145,-2668.56,0.00030136,2]
[337154898,1725456760155,-1035.91,0.00030136,2]
[337154899,1725456760164,-1248.71,0.00030136,2]
[337154900,1725456760173,-967.05,0.00030136,2]
[337154901,1725456760182,-2693.21,0.00030136,2]
[337154902,1725456760191,-1338.09,0.00030136,2]
[337154903,1725456760201,-1107.58,0.00030136,2]
[337154904,1725456760210,-500.0,0.00030136,2]
[337154905,1725456760220,-4246.41,0.00030136,2]
[337154906,1725456760232,-1107.23,0.00030136,2]
[337154907,1725456760241,-1365.5,0.00030136,2]
[337154908,1725456760250,-1532.75,0.00030136,2]
[337154909,1725456760259,-1527.6,0.00030136,2]
[337154910,1725456760268,-1066.88,0.00030136,2]
[337154911,1725456760278,-1660.38,0.00030136,2]
[337154912,1725456760287,-754.88,0.00030136,2]
[337154913,1725456760296,-1670.02,0.00030136,2]
[337154914,1725456760305,-770.2,0.00030136,2]
[337154915,1725456760315,-1102.43,0.00030136,2]
[337154916,1725456760324,-1127.67,0.00030136,2]
[337154917,1725456760333,-1244.81,0.00030136,2]
[337154918,1725456760343,-500.0,0.00030136,2]
[337154919,1725456760352,-1739.84,0.00030136,2]
[337154920,1725456760362,-500.0,0.00030136,2]
[337154921,1725456760371,-200.0,0.00030136,2]
[337154922,1725456760382,-1099.51,0.00030136,2]
[337154923,1725456760391,-1841.76,0.00030136,2]
[337154924,1725456760401,-1011.14,0.00030136,2]
[337154925,1725456760410,-1093.15,0.00030136,2]
[337154926,1725456760420,-1756.8,0.00030136,2]
[337154927,1725456760429,-1799.48,0.00030136,2]
[337154928,1725456760439,-734.49,0.00030136,2]
[337154929,1725456760448,-500.0,0.00030136,2]
[337154930,1725456760458,-1000.0,0.00030136,118]
[337154931,1725456760467,-1000.0,0.00030136,118]
[337154932,1725456760478,-1000.0,0.00030136,118]
[337154933,1725456760489,-1000.0,0.00030136,118]
[337154934,1725456760498,-1000.0,0.00030136,118]
[337154935,1725456760507,-1000.0,0.00030136,118]
[337154936,1725456760517,-1000.0,0.00030136,118]
[337154937,1725456760527,-1000.0,0.00030136,118]
[337154938,1725456760537,-1000.0,0.00030136,118]
[337154939,1725456760546,-1000.0,0.00030136,118]
[337154940,1725456760556,-982.47186444,0.00030136,118]
[337154941,1725456760565,-467.51175073,0.00030137,2]
[337154942,1725456760574,-28964.03,0.000302,14]
[337154943,1725456760583,-2000.0,0.00030224,5]
[337154944,1725456760593,-587.0,0.00030249,2]
[337154945,1725456760602,-385.6170609,0.00030322,2]
[337154946,1725456760611,-153.0,0.00030322,2]
[337154947,1725456760621,-153.0,0.00030322,2]
[337154948,1725456760635,-153.0,0.00030322,2]
[337154949,1725456760645,-153.0,0.00030322,2]
[337154950,1725456760654,-153.0,0.00030322,2]
[337154951,1725456760664,-153.0,0.00030322,2]
[337154952,1725456760674,-153.0,0.00030322,2]
[337154953,1725456760683,-153.0,0.00030322,2]
[337154954,1725456760692,-153.0,0.00030322,2]
[337154955,1725456760701,-153.0,0.00030322,2]
[337154956,1725456760714,-388.0879828,0.00030322,2]
[337154957,1725456760724,-153.0,0.00030322,2]
[337154958,1725456760739,-153.0,0.00030322,2]
[337154959,1725456760749,-153.0,0.00030322,2]
[337154960,1725456760758,-153.0,0.00030322,2]
[337154961,1725456760768,-160.0,0.00030365,3]
[337154962,1725456760778,-500.0,0.000304,2]
[337154963,1725456760788,-749.82,0.000304,2]
[337154964,1725456760798,-500.0,0.000304,2]
[337154965,1725456760807,-500.0,0.000304,2]
[337154966,1725456760816,-60283.29,0.000304,14]
[337154967,1725456760826,-2710.57,0.0003041,2]
[337154968,1725456760835,-500.0,0.0003041,2]
[337154969,1725456760845,-1541.42,0.0003041,2]
[337154970,1725456760854,-3258.81,0.0003041,2]
[337154971,1725456760864,-500.0,0.0003041,2]
[337154972,1725456760873,-1264.51,0.0003041,2]
[337154973,1725456760883,-9158.35,0.0003041,2]
[337154974,1725456760893,-500.0,0.0003041,2]
[337154975,1725456760903,-584.36,0.0003041,2]
[337154976,1725456760912,-500.0,0.0003041,2]
[337154977,1725456760922,-542.73,0.0003041,2]
[337154978,1725456760931,-500.0,0.0003041,2]
[337154979,1725456760940,-500.0,0.0003041,2]
[337154980,1725456760950,-1675.33,0.0003041,2]
[337154981,1725456760960,-1458.75,0.0003041,2]
[337154982,1725456760969,-500.0,0.0003041,2]
[337154983,1725456760982,-552.11,0.0003041,2]
[337154984,1725456760997,-500.0,0.0003041,2]
[337154985,1725456761006,-500.0,0.0003041,2]
[337154986,1725456761015,-500.0,0.0003041,2]
[337154987,1725456761025,-611.16319319,0.0003041,2]
[337154988,1725456761035,-500.0,0.0003041,2]
[337154989,1725456761044,-500.0,0.0003041,2]
[337154990,1725456761054,-500.0,0.0003041,2]
[337154991,1725456761064,-500.0,0.0003041,2]
[337154992,1725456761073,-500.0,0.0003041,2]
[337154993,1725456761083,-205.46,0.0003041,2]
[337154994,1725456761092,-500.0,0.0003041,2]
[337154995,1725456761101,-500.0,0.0003041,2]
[337154996,1725456761111,-500.0,0.0003041,2]
[337154997,1725456761120,-500.0,0.0003041,2]
[337154998,1725456761130,-500.0,0.0003041,2]
[337154999,1725456761139,-500.0,0.0003041,2]
[337155000,1725456761150,-500.0,0.0003041,2]
[337155001,1725456761160,-869.49,0.0003041,2]
[337155002,1725456761169,-1197.66,0.0003041,2]
[337155003,1725456761179,-588.3,0.0003041,2]
[337155004,1725456761189,-600.56,0.0003041,2]
[337155005,1725456761199,-991.44,0.0003041,2]
[337155006,1725456761208,-1781.5,0.0003041,2]
[337155007,1725456761218,-434.1564674,0.0003041,2]
[337155008,1725456761230,-500.0,0.0003041,2]
[337155009,1725456761240,-320.22,0.0003041,2]
[337155010,1725456761250,-292.28,0.0003041,2]
[337155011,1725456761260,-500.0,0.0003041,2]
[337155012,1725456761269,-500.0,0.0003041,2]
[337155013,1725456761279,-500.0,0.0003041,2]
[337155014,1725456761288,-232.46,0.0003041,2]
[337155015,1725456761298,-332.59,0.0003041,2]
[337155016,1725456761307,-500.0,0.0003041,2]
[337155017,1725456761317,-500.0,0.0003041,2]
[337155018,1725456761326,-500.0,0.0003041,2]
[337155019,1725456761336,-500.0,0.0003041,2]
[337155020,1725456761346,-500.0,0.0003041,2]
[337155021,1725456761355,-500.0,0.0003041,2]
[337155022,1725456761365,-316.61770957,0.0003041,2]
[337155023,1725456761375,-500.0,0.0003041,2]
[337155024,1725456761385,-500.0,0.0003041,2]
[337155025,1725456761394,-500.0,0.0003041,2]
[337155026,1725456761404,-500.0,0.0003041,2]
[337155027,1725456761413,-500.0,0.0003041,2]
[337155028,1725456761423,-500.0,0.0003041,2]
[337155029,1725456761432,-525.77,0.0003041,2]
[337155030,1725456761442,-500.0,0.0003041,2]
[337155031,1725456761452,-500.0,0.0003041,2]
[337155032,1725456761462,-500.0,0.0003041,2]
[337155033,1725456761472,-500.0,0.0003041,2]
[337155034,1725456761484,-500.0,0.0003041,2]
[337155035,1725456761493,-676.43,0.0003041,2]
[337155036,1725456761502,-632.09,0.0003041,2]
[337155037,1725456761512,-500.0,0.0003041,2]
[337155038,1725456761521,-487.83463648,0.0003041,2]
[337155039,1725456761531,-500.0,0.0003041,2]
[337155040,1725456761541,-500.0,0.0003041,2]
[337155041,1725456761550,-500.0,0.0003041,2]
[337155042,1725456761560,-500.0,0.0003041,2]
[337155043,1725456761569,-500.0,0.0003041,2]
[337155044,1725456761578,-500.0,0.0003041,2]
[337155045,1725456761587,-500.0,0.0003041,2]
[337155046,1725456761596,-500.0,0.0003041,2]
[337155047,1725456761605,-500.0,0.0003041,2]
[337155048,1725456761615,-500.0,0.0003041,2]
[337155049,1725456761631,-616.0,0.0003041,2]
[337155050,1725456761641,-504.86,0.0003041,2]
[337155051,1725456761651,-604.04,0.0003041,2]
[337155052,1725456761660,-500.0,0.0003041,2]
[337155053,1725456761670,-500.0,0.0003041,2]
[337155054,1725456761679,-244.56623284,0.0003041,2]
[337155055,1725456761689,-500.0,0.0003041,2]
[337155056,1725456761699,-500.0,0.0003041,2]
[337155057,1725456761711,-1246.01,0.0003041,2]
[337155058,1725456761721,-697.13,0.0003041,2]
[337155059,1725456761731,-500.0,0.0003041,2]
[337155060,1725456761741,-590.32021468,0.0003041,2]
[337155061,1725456761750,-854.77,0.0003041,2]
[337155062,1725456761759,-407.98,0.0003041,2]
[337155063,1725456761768,-600.81,0.0003041,2]
[337155064,1725456761778,-500.0,0.0003041,2]
[337155065,1725456761788,-749.45,0.0003041,2]
[337155066,1725456761798,-500.0,0.0003041,2]
[337155067,1725456761807,-500.0,0.0003041,2]
[337155068,1725456761816,-648.13880602,0.0003041,2]
[337155069,1725456761825,-500.0,0.0003041,2]
[337155070,1725456761834,-590.0,0.0003041,2]
[337155071,1725456761843,-500.0,0.0003041,2]
[337155072,1725456761853,-500.0,0.0003041,2]
[337155073,1725456761863,-500.0,0.0003041,2]
[337155074,1725456761872,-500.0,0.0003041,2]
[337155075,1725456761881,-500.0,0.0003041,2]
[337155076,1725456761891,-500.0,0.0003041,2]
[337155077,1725456761900,-500.0,0.0003041,2]
[337155078,1725456761909,-510.61,0.0003041,2]
[337155079,1725456761919,-500.0,0.0003041,2]
[337155080,1725456761928,-500.0,0.0003041,2]
[337155081,1725456761937,-500.0,0.0003041,2]
[337155082,1725456761947,-500.0,0.0003041,2]
[337155083,1725456761956,-446.99081455,0.0003041,2]
[337155084,1725456761965,-500.0,0.0003041,2]
[337155085,1725456761974,-500.0,0.0003041,2]
[337155086,1725456761984,-500.0,0.0003041,2]
[337155087,1725456761993,-500.0,0.0003041,2]
[337155088,1725456762002,-500.0,0.0003041,2]
[337155089,1725456762012,-540.26474212,0.0003041,2]
[337155090,1725456762021,-500.0,0.0003041,2]
[337155091,1725456762030,-500.0,0.0003041,2]
[337155092,1725456762040,-500.0,0.0003041,2]
[337155093,1725456762049,-887.25,0.0003041,2]
[337155094,1725456762059,-500.0,0.0003041,2]
[337155095,1725456762068,-500.0,0.0003041,2]
[337155096,1725456762078,-500.0,0.0003041,2]
[337155097,1725456762087,-758.9,0.0003041,2]
[337155098,1725456762096,-500.0,0.0003041,2]
[337155099,1725456762106,-500.0,0.0003041,2]
[337155100,1725456762115,-500.0,0.0003041,2]
[337155101,1725456762124,-500.0,0.0003041,2]
[337155102,1725456762134,-500.0,0.0003041,2]
[337155103,1725456762143,-500.0,0.0003041,2]
[337155104,1725456762153,-500.0,0.0003041,2]
[337155105,1725456762162,-500.0,0.0003041,2]
[337155106,1725456762172,-500.0,0.0003041,2]
[337155107,1725456762181,-500.0,0.0003041,2]
[337155108,1725456762190,-500.0,0.0003041,2]
[337155109,1725456762200,-500.0,0.0003041,2]
[337155110,1725456762209,-500.0,0.0003041,2]
[337155111,1725456762219,-500.0,0.0003041,2]
[337155112,1725456762229,-945.1,0.0003041,2]
[337155113,1725456762239,-500.0,0.0003041,2]
[337155114,1725456762248,-1029.49,0.0003041,2]
[337155115,1725456762257,-770.95,0.0003041,2]
[337155116,1725456762266,-500.0,0.0003041,2]
[337155117,1725456762275,-500.0,0.0003041,2]
[337155118,1725456762284,-500.0,0.0003041,2]
[337155119,1725456762293,-566.62,0.0003041,2]
[337155120,1725456762303,-657.65,0.0003041,2]
[337155121,1725456762311,-500.0,0.0003041,2]
[337155122,1725456762321,-500.0,0.0003041,2]
[337155123,1725456762331,-500.0,0.0003041,2]
[337155124,1725456762340,-500.0,0.0003041,2]
[337155125,1725456762349,-500.0,0.0003041,2]
[337155126,1725456762359,-500.0,0.0003041,2]
[337155127,1725456762369,-863.47,0.0003041,2]
[337155128,1725456762378,-500.0,0.0003041,2]
[337155129,1725456762388,-614.65,0.0003041,2]
[337155130,1725456762398,-500.0,0.0003041,2]
[337155131,1725456762407,-500.0,0.0003041,2]
[337155132,1725456762416,-500.0,0.0003041,2]
[337155133,1725456762426,-500.0,0.0003041,2]
[337155134,1725456762435,-500.0,0.0003041,2]
[337155135,1725456762445,-500.0,0.0003041,2]
[337155136,1725456762454,-500.0,0.0003041,2]
[337155137,1725456762463,-500.0,0.0003041,2]
[337155138,1725456762472,-500.0,0.0003041,2]
[337155139,1725456762483,-500.0,0.0003041,2]
[337155140,1725456762493,-500.0,0.0003041,2]
[337155141,1725456762503,-648.68,0.0003041,2]
[337155142,1725456762512,-500.0,0.0003041,2]
[337155143,1725456762521,-500.0,0.0003041,2]
[337155144,1725456762530,-500.0,0.0003041,2]
[337155145,1725456762540,-500.0,0.0003041,2]
[337155146,1725456762549,-701.69,0.0003041,2]
[337155147,1725456762559,-500.0,0.0003041,2]
[337155148,1725456762568,-500.0,0.0003041,2]
[337155149,1725456762577,-521.29427164,0.0003041,2]
[337155150,1725456762586,-500.0,0.0003041,2]
[337155151,1725456762595,-500.0,0.0003041,2]
[337155152,1725456762605,-500.0,0.0003041,2]
[337155153,1725456762614,-500.0,0.0003041,2]
[337155154,1725456762623,-500.0,0.0003041,2]
[337155155,1725456762636,-500.0,0.0003041,2]
[337155156,1725456762645,-500.0,0.0003041,2]
[337155157,1725456762655,-578.02,0.0003041,2]
[337155158,1725456762866,-555.38,0.0003041,2]
[337155159,1725456762876,-500.0,0.0003041,2]
[337155160,1725456762886,-500.0,0.0003041,2]
[337155161,1725456762896,-666.45,0.0003041,2]
[337155162,1725456762906,-500.0,0.0003041,2]
[337155163,1725456762915,-500.0,0.0003041,2]
[337155164,1725456762926,-406.29407876,0.0003041,2]
[337155165,1725456762935,-623.51,0.0003041,2]
[337155166,1725456762945,-674.09,0.0003041,2]
[337155167,1725456762954,-574.79,0.0003041,2]
[337155168,1725456762964,-500.0,0.0003041,2]
[337155169,1725456762973,-500.0,0.0003041,2]
[337155170,1725456762988,-604.6,0.0003041,2]
[337155171,1725456762999,-568.32066387,0.0003041,2]
[337155172,1725456763009,-500.0,0.0003041,2]
[337155173,1725456763018,-500.0,0.0003041,2]
[337155174,1725456763028,-500.0,0.0003041,2]
[337155175,1725456763037,-500.0,0.0003041,2]
[337155176,1725456763046,-500.0,0.0003041,2]
[337155177,1725456763056,-500.0,0.0003041,2]
[337155178,1725456763066,-344.77991807,0.0003041,2]
[337155179,1725456763075,-500.0,0.0003041,2]
[337155180,1725456763084,-500.0,0.0003041,2]
[337155181,1725456763093,-500.0,0.0003041,2]
[337155182,1725456763103,-500.0,0.0003041,2]
[337155183,1725456763111,-500.0,0.0003041,2]
[337155184,1725456763122,-500.0,0.0003041,2]
[337155185,1725456763132,-454.74204076,0.0003041,2]
[337155186,1725456763142,-157.16,0.0003041,2]
[337155187,1725456763152,-500.0,0.0003041,2]
[337155188,1725456763161,-500.0,0.0003041,2]
[337155189,1725456763171,-847.93,0.0003041,2]
[337155190,1725456763180,-500.0,0.0003041,2]
[337155191,1725456763189,-870.2,0.0003041,2]
[337155192,1725456763198,-500.0,0.0003041,2]
[337155193,1725456763207,-500.0,0.0003041,2]
[337155194,1725456763216,-1991.87,0.0003041,2]
[337155195,1725456763225,-500.0,0.0003041,2]
[337155196,1725456763239,-899.14,0.0003041,2]
[337155197,1725456763248,-613.99,0.0003041,2]
[337155198,1725456763258,-762.62,0.0003041,2]
[337155199,1725456763268,-242.6,0.0003041,2]
[337155200,1725456763277,-500.0,0.0003041,2]
[337155201,1725456763286,-732.83,0.0003041,2]
[337155202,1725456763296,-350.66,0.0003041,2]
[337155203,1725456763305,-500.0,0.0003041,2]
[337155204,1725456763314,-500.0,0.0003041,2]
[337155205,1725456763323,-500.0,0.0003041,2]
[337155206,1725456763332,-500.0,0.0003041,2]
[337155207,1725456763341,-500.0,0.0003041,2]
[337155208,1725456763351,-409.02089761,0.0003041,2]
[337155209,1725456763361,-500.0,0.0003041,2]
[337155210,1725456763370,-500.0,0.0003041,2]
[337155211,1725456763379,-500.0,0.0003041,2]
[337155212,1725456763389,-2003.71,0.0003041,2]
[337155213,1725456763398,-1205.94,0.0003041,2]
[337155214,1725456763407,-500.0,0.0003041,2]
[337155215,1725456763417,-399.14,0.0003041,2]
[337155216,1725456763427,-526.12,0.0003041,2]
[337155217,1725456763436,-500.0,0.0003041,2]
[337155218,1725456763446,-500.0,0.0003041,2]
[337155219,1725456763455,-430.03,0.0003041,2]
[337155220,1725456763465,-500.0,0.0003041,2]
[337155221,1725456763474,-477.85977837,0.0003041,2]
[337155222,1725456763488,-912.72,0.0003041,2]
[337155223,1725456763497,-500.0,0.0003041,2]
[337155224,1725456763507,-161.6,0.0003041,2]
[337155225,1725456763517,-1228.0,0.0003041,2]
[337155226,1725456763527,-500.0,0.0003041,2]
[337155227,1725456763536,-500.0,0.0003041,2]
[337155228,1725456763546,-954.3,0.0003041,2]
[337155229,1725456763556,-1417.83,0.0003041,2]
[337155230,1725456763566,-1493.78,0.0003041,2]
[337155231,1725456763575,-591.49,0.0003041,2]
[337155232,1725456763585,-711.92,0.0003041,2]
[337155233,1725456763594,-1275.87,0.0003041,2]
[337155234,1725456763603,-2668.56,0.0003041,2]
[337155235,1725456763613,-1035.91,0.0003041,2]
[337155236,1725456763624,-1248.71,0.0003041,2]
[337155237,1725456763635,-967.05,0.0003041,2]
[337155238,1725456763644,-2693.21,0.0003041,2]
[337155239,1725456763653,-1338.09,0.0003041,2]
[337155240,1725456763662,-1107.58,0.0003041,2]
[337155241,1725456763671,-434.02,0.0003041,2]
[337155242,1725456763680,-4246.41,0.0003041,2]
[337155243,1725456763690,-1107.23,0.0003041,2]
[337155244,1725456763700,-1365.5,0.0003041,2]
[337155245,1725456763710,-1532.75,0.0003041,2]
[337155246,1725456763720,-1527.6,0.0003041,2]
[337155247,1725456763730,-1066.88,0.0003041,2]
[337155248,1725456763739,-1660.38,0.0003041,2]
[337155249,1725456763749,-754.88,0.0003041,2]
[337155250,1725456763758,-1670.02,0.0003041,2]
[337155251,1725456763768,-770.2,0.0003041,2]
[337155252,1725456763777,-1102.43,0.0003041,2]
[337155253,1725456763785,-1127.67,0.0003041,2]
[337155254,1725456763795,-1244.81,0.0003041,2]
[337155255,1725456763803,-500.0,0.0003041,2]
[337155256,1725456763813,-1739.84,0.0003041,2]
[337155257,1725456763823,-500.0,0.0003041,2]
[337155258,1725456763832,-204.0273159,0.0003041,2]
[337155259,1725456763841,-1099.51,0.0003041,2]
[337155260,1725456763850,-1841.76,0.0003041,2]
[337155261,1725456763860,-1011.14,0.0003041,2]
[337155262,1725456763869,-1093.15,0.0003041,2]
[337155263,1725456763879,-1756.8,0.0003041,2]
[337155264,1725456763889,-1799.48,0.0003041,2]
[337155265,1725456763898,-734.49,0.0003041,2]
[337155266,1725456763908,-500.0,0.0003041,2]
[337155267,1725456763917,-241.1964392,0.00030431,2]
[337155268,1725456763926,-985.19628243,0.00030489,2]
[337155269,1725456763936,-204.77929,0.00030527,2]
[337155270,1725456763945,-204.77929,0.00030527,2]
[337155271,1725456763954,-192.145128,0.00030527,2]
[337155272,1725456763964,-279.800464,0.00030527,2]
[337155273,1725456763973,-336.491161,0.00030527,2]
[337155274,1725456763983,-198.197436,0.00030527,2]
[337155275,1725456763993,-198.197436,0.00030527,2]
[337155276,1725456764003,-792.789742,0.00030527,2]
[337155277,1725456764013,-314.936021,0.00030527,2]
[337155278,1725456764022,-475.673845,0.00030527,2]
[337155279,1725456764031,-158.557949,0.00030527,2]
[337155280,1725456764041,-203.65972,0.00030527,2]
[337155281,1725456764050,-162.947401,0.00030527,2]
[337155282,1725456764059,-155.569969,0.00030527,2]
[337155283,1725456764069,-385.464683,0.00030527,2]
[337155284,1725456764078,-469.959228,0.00030527,2]
[337155285,1725456764088,-469.959228,0.00030527,2]
[337155286,1725456764098,-292.252881,0.00030527,2]
[337155287,1725456764108,-558.404439,0.00030527,2]
[337155288,1725456764117,-558.404439,0.00030527,2]
[337155289,1725456764127,-335.042663,0.00030527,2]
[337155290,1725456764136,-155.56997,0.00030527,2]
[337155291,1725456764145,-182.658051,0.00030527,2]
[337155292,1725456764154,-223.361777,0.00030527,2]
[337155293,1725456764163,-466.059004,0.00030527,2]
[337155294,1725456764173,-383.358184,0.00030527,2]
[337155295,1725456764182,-153.584468,0.00030527,2]
[337155296,1725456764191,-615.884627,0.0003057,2]
[337155297,1725456764201,-6849.4161113,0.0003058,2]
[337155298,1725456764210,-150.0,0.0003061,2]
[337155299,1725456764219,-523.0,0.0003061,2]
[337155300,1725456764228,-150.0,0.00030628,2]
[337155301,1725456764238,-150.0,0.00030628,2]
[337155302,1725456764247,-150.0,0.00030628,2]
[337155303,1725456764256,-500.0,0.00030674,2]
[337155304,1725456764267,-749.82,0.00030674,2]
[337155305,1725456764276,-500.0,0.00030674,2]
[337155306,1725456764285,-500.0,0.00030674,2]
[337155307,1725456764294,-2710.57,0.00030684,2]
[337155308,1725456764304,-334.40766406,0.00030684,2]
[337155309,1725456764313,-1541.42,0.00030684,2]
[337155310,1725456764322,-3258.81,0.00030684,2]
[337155311,1725456764331,-500.0,0.00030684,2]
[337155312,1725456764341,-1264.51,0.00030684,2]
[337155313,1725456764351,-9158.35,0.00030684,2]
[337155314,1725456764360,-500.0,0.00030684,2]
[337155315,1725456764370,-584.36,0.00030684,2]
[337155316,1725456764379,-526.26,0.00030684,2]
[337155317,1725456764388,-542.73,0.00030684,2]
[337155318,1725456764397,-473.47,0.00030684,2]
[337155319,1725456764406,-500.0,0.00030684,2]
[337155320,1725456764415,-1675.33,0.00030684,2]
[337155321,1725456764425,-1458.75,0.00030684,2]
[337155322,1725456764435,-500.0,0.00030684,2]
[337155323,1725456764444,-552.11,0.00030684,2]
[337155324,1725456764453,-500.0,0.00030684,2]
[337155325,1725456764462,-500.0,0.00030684,2]
[337155326,1725456764471,-500.0,0.00030684,2]
[337155327,1725456764482,-500.0,0.00030684,2]
[337155328,1725456764491,-500.0,0.00030684,2]
[337155329,1725456764501,-500.0,0.00030684,2]
[337155330,1725456764510,-500.0,0.00030684,2]
[337155331,1725456764520,-500.0,0.00030684,2]
[337155332,1725456764529,-500.0,0.00030684,2]
[337155333,1725456764539,-500.0,0.00030684,2]
[337155334,1725456764548,-198.18,0.00030684,2]
[337155335,1725456764557,-500.0,0.00030684,2]
[337155336,1725456764567,-500.0,0.00030684,2]
[337155337,1725456764577,-500.0,0.00030684,2]
[337155338,1725456764586,-500.0,0.00030684,2]
[337155339,1725456764595,-1197.66,0.00030684,2]
[337155340,1725456764605,-588.3,0.00030684,2]
[337155341,1725456764614,-600.56,0.00030684,2]
[337155342,1725456764624,-991.44,0.00030684,2]
[337155343,1725456764635,-500.0,0.00030684,2]
[337155344,1725456764645,-500.0,0.00030684,2]
[337155345,1725456764654,-500.0,0.00030684,2]
[337155346,1725456764663,-500.0,0.00030684,2]
[337155347,1725456764673,-500.0,0.00030684,2]
[337155348,1725456764682,-500.0,0.00030684,2]
[337155349,1725456764692,-500.0,0.00030684,2]
[337155350,1725456764702,-500.0,0.00030684,2]
[337155351,1725456764713,-500.0,0.00030684,2]
[337155352,1725456764722,-500.0,0.00030684,2]
[337155353,1725456764734,-500.0,0.00030684,2]
[337155354,1725456764743,-500.0,0.00030684,2]
[337155355,1725456764752,-500.0,0.00030684,2]